bitfinex/quotes_BTCUSD_20230107
["timestamp","ask_amount","ask_price","bid_price","bid_amount"]
[1673129222088,0.07277885,16953.0,16952.0,1.93784058]
[1673129222222,0.07277885,16953.0,16952.0,1.76088181]
[1673129222984,0.08177885,16953.0,16952.0,1.76088181]
[1673129223489,0.08377885,16953.0,16952.0,1.78088181]
[1673129223718,0.07277885,16953.0,16952.0,1.76088181]
[1673129223970,0.08177885,16953.0,16952.0,1.84188181]
[1673129224456,0.17744627,16953.0,16952.0,1.76088181]
[1673129224966,0.10466742,16953.0,16952.0,2.24218481]
[1673129225234,0.10466742,16953.0,16952.0,2.41914358]
[1673129225926,0.11366742,16953.0,16952.0,2.01884058]
[1673129226150,0.11366742,16953.0,16952.0,1.93784058]
[1673129226397,0.18844627,16953.0,16952.0,1.78088181]
[1673129226637,0.10466742,16953.0,16952.0,1.93784058]
[1673129226880,0.11366742,16953.0,16952.0,2.01884058]
[1673129227125,0.17744627,16953.0,16952.0,1.93784058]
[1673129227385,0.17944627,16953.0,16952.0,1.95784058]
[1673129227629,0.17944627,16953.0,16952.0,1.93784058]
[1673129227896,0.18844627,16953.0,16952.0,2.01884058]
[1673129228154,0.18844627,16953.0,16952.0,1.84188181]
[1673129228908,0.17744627,16953.0,16952.0,1.76088181]
[1673129229157,0.17944627,16953.0,16952.0,1.78088181]
[1673129229384,0.17744627,16953.0,16952.0,1.76088181]
[1673129229607,0.18644627,16953.0,16952.0,1.84188181]
[1673129233088,0.18644627,16953.0,16952.0,2.01884058]
[1673129233846,0.18644627,16953.0,16952.0,2.50014358]
[1673129234555,0.18644627,16953.0,16952.0,2.32318481]
[1673129235164,0.18644627,16953.0,16952.0,1.84188181]
[1673129236505,0.45186663,16953.0,16952.0,1.84188181]
[1673129237009,0.18644627,16953.0,16952.0,1.84188181]
[1673129238037,0.45186663,16953.0,16952.0,1.84188181]
[1673129239323,0.73296123,16953.0,16952.0,1.25198181]
[1673129240137,0.73296123,16953.0,16952.0,0.6709]
[1673129240346,2.26179491,16953.0,16952.0,0.08089103]
[1673129240855,2.15479598,16953.0,16952.0,0.08089103]
[1673129241114,1.65456251,16953.0,16952.0,0.08089103]
[1673129241405,1.21247897,16953.0,16952.0,0.08089103]
[1673129241626,2.35062221,16953.0,16952.0,0.08089103]
[1673129242380,1.82012197,16953.0,16952.0,0.08089103]
[1673129242900,2.2622419,16953.0,16952.0,0.08089103]
[1673129248283,2.6156782,16953.0,16952.0,0.08089103]
[1673129248806,2.2622419,16953.0,16952.0,0.08089103]
[1673129249048,2.61566327,16953.0,16952.0,0.08089103]
[1673129249333,2.2622419,16953.0,16952.0,0.08089103]
[1673129250861,2.61561632,16953.0,16952.0,0.08089103]
[1673129251640,2.2622419,16953.0,16952.0,0.08089103]
[1673129252359,2.61556169,16953.0,16952.0,0.08089103]
[1673129252604,2.2622419,16953.0,16952.0,0.08089103]
[1673129253164,2.61554727,16953.0,16952.0,0.08089103]
[1673129253414,2.2622419,16953.0,16952.0,0.08089103]
[1673129254419,2.61551888,16953.0,16952.0,0.08089103]
[1673129254906,2.61551823,16953.0,16952.0,0.08089103]
[1673129255158,2.6155051,16953.0,16952.0,0.08089103]
[1673129255404,1.80092695,16953.0,16952.0,0.08089103]
[1673129255651,1.54654872,16953.0,16952.0,0.08089103]
[1673129255926,1.36938657,16953.0,16952.0,0.08089103]
[1673129256190,1.97702957,16953.0,16952.0,0.08089103]
[1673129257180,2.43866632,16953.0,16952.0,0.08089103]
[1673129257429,2.61582847,16953.0,16952.0,0.08089103]
[1673129257923,2.88078176,16953.0,16952.0,0.08089103]
[1673129258147,2.41914501,16953.0,16952.0,0.08089103]
[1673129259175,2.41915006,16953.0,16952.0,0.08089103]
[1673129259506,1.97703013,16953.0,16952.0,0.08089103]
[1673129263076,1.97703013,16953.0,16952.0,0.0808045]
[1673129266496,2.41915006,16953.0,16952.0,0.0808045]
[1673129267299,2.15419172,16953.0,16952.0,0.0808045]
[1673129267546,1.54654872,16953.0,16952.0,0.0808045]
[1673129267781,1.81159911,16953.0,16952.0,0.0808045]
[1673129268066,1.54654872,16953.0,16952.0,0.0808045]
[1673129274113,0.90905212,16953.0,16952.0,0.0808045]
[1673129274368,0.73217393,16953.0,16952.0,0.66513273]
[1673129274615,0.29051477,16953.0,16952.0,0.66513273]
[1673129274882,0.29051477,16953.0,16952.0,1.14643573]
[1673129276175,0.29051477,16953.0,16952.0,0.66513273]
[1673129278225,0.55575651,16953.0,16952.0,0.66513273]
[1673129280415,0.73217393,16953.0,16952.0,0.66513273]
[1673129283130,0.72317393,16953.0,16952.0,0.58432823]
[1673129283387,0.73317393,16953.0,16952.0,0.66532823]
[1673129283628,0.72317393,16953.0,16952.0,0.58432823]
[1673129284131,0.73217393,16953.0,16952.0,0.58432823]
[1673129284380,0.54677129,16953.0,16952.0,0.66532823]
[1673129284628,0.55677129,16953.0,16952.0,0.66532823]
[1673129290275,0.91003606,16953.0,16952.0,0.66532823]
[1673129290774,0.55677129,16953.0,16952.0,0.66532823]
[1673129291475,0.91003606,16953.0,16952.0,0.66532823]
[1673129292011,0.55677129,16953.0,16952.0,0.66532823]
[1673129292252,0.73317393,16953.0,16952.0,0.66532823]
[1673129293304,0.73317393,16953.0,16952.0,0.081]
[1673129293812,0.73317393,16953.0,16952.0,0.08091059]
[1673129294046,1.33317393,16953.0,16952.0,0.08091059]
[1673129295012,1.94081693,16953.0,16952.0,0.08091059]
[1673129295263,1.33317393,16953.0,16952.0,0.08091059]
[1673129297013,0.73317393,16953.0,16952.0,0.08091059]
[1673129298261,0.55680875,16953.0,16952.0,0.08091059]
[1673129300575,0.73317393,16953.0,16952.0,0.08091059]
[1673129304381,0.556832,16953.0,16952.0,0.08091059]
[1673129306407,0.73317393,16953.0,16952.0,0.08091059]
[1673129306879,0.9101025,16953.0,16952.0,0.08091059]
[1673129307367,0.55683773,16953.0,16952.0,0.08091059]
[1673129307613,0.55683773,16953.0,16952.0,0.56221359]
[1673129307865,0.55683773,16953.0,16952.0,0.08091059]
[1673129308331,0.73317393,16953.0,16952.0,0.08091059]
[1673129309594,1.17529386,16953.0,16952.0,0.08091059]
[1673129309855,0.73317393,16953.0,16952.0,0.08091059]
[1673129310355,0.73317393,16953.0,16952.0,0.56221359]
[1673129310585,0.73317393,16953.0,16952.0,0.08091059]
[1673129311333,0.73317393,16953.0,16952.0,0.56221359]
[1673129311831,0.73317393,16953.0,16952.0,0.08091059]
[1673129312342,0.73317393,16953.0,16952.0,0.56221359]
[1673129316108,0.91019888,16953.0,16952.0,0.56221359]
[1673129316624,0.55693411,16953.0,16952.0,0.56221359]
[1673129319905,0.91019888,16953.0,16952.0,0.56221359]
[1673129320877,0.55693411,16953.0,16952.0,0.56221359]
[1673129321613,0.91018018,16953.0,16952.0,0.08091059]
[1673129321851,0.73317393,16953.0,16952.0,0.08091059]
[1673129322112,0.73317393,16953.0,16952.0,0.56221359]
[1673129322608,0.73317393,16953.0,16952.0,0.08091059]
[1673129323051,0.73317393,16953.0,16952.0,0.56221359]
[1673129323310,0.73317393,16953.0,16952.0,0.08091059]
[1673129324393,0.91005212,16953.0,16952.0,0.08091059]
[1673129324887,1.1755517,16953.0,16952.0,0.08091059]
[1673129325655,0.73343177,16953.0,16952.0,0.08091059]
[1673129325879,0.73343177,16953.0,16952.0,0.56221359]
[1673129326133,1.1755517,16953.0,16952.0,0.56221359]
[1673129326345,0.73343177,16953.0,16952.0,0.08091059]
[1673129326563,1.1755517,16953.0,16952.0,0.08091059]
[1673129326825,0.91005212,16953.0,16952.0,0.08091059]
[1673129327075,0.91005212,16953.0,16952.0,0.08084653]
[1673129327587,1.53298671,16953.0,16952.0,0.08084653]
[1673129327849,2.24907931,16953.0,16952.0,0.08084653]
[1673129328104,1.34524501,16953.0,16952.0,0.08084653]
[1673129328371,0.73760201,16953.0,16952.0,0.08084653]
[1673129328628,1.33760201,16953.0,16952.0,0.08084653]
[1673129329651,1.77994947,16953.0,16952.0,0.08084653]
[1673129340347,2.66990947,16953.0,16952.0,0.08084653]
[1673129340595,4.25484457,16953.0,16952.0,0.08084653]
[1673129340849,5.44442476,16953.0,16952.0,0.08084653]
[1673129341286,5.09070247,16953.0,16952.0,0.08084653]
[1673129342065,5.48197096,16953.0,16952.0,0.08084653]
[1673129347190,5.48197096,16953.0,16952.0,0.08077375]
[1673129349690,5.12826247,16953.0,16952.0,0.08077375]
[1673129351959,5.12815946,16953.0,16952.0,0.08077375]
[1673129359166,5.48191051,16953.0,16952.0,0.08077375]
[1673129359424,5.12815946,16953.0,16952.0,0.08077375]
[1673129361058,4.685812,16953.0,16952.0,0.08077375]
[1673129362283,4.078169,16953.0,16952.0,0.08077375]
[1673129365614,4.685812,16953.0,16952.0,0.08077375]
[1673129365835,5.21631224,16953.0,16952.0,0.08077375]
[1673129368798,4.685812,16953.0,16952.0,0.08077375]
[1673129369044,5.21631224,16953.0,16952.0,0.08077375]
[1673129373519,4.685812,16953.0,16952.0,0.08077375]
[1673129374282,4.078169,16953.0,16952.0,0.08065774]
[1673129375082,4.685812,16953.0,16952.0,0.08065774]
[1673129377965,4.078169,16953.0,16952.0,0.08065774]
[1673129380782,4.685812,16953.0,16952.0,0.08065774]
[1673129382929,5.21631224,16953.0,16952.0,0.08065774]
[1673129384169,4.685812,16953.0,16952.0,0.08065774]
[1673129384416,4.078169,16953.0,16952.0,0.08065774]
[1673129386660,3.478169,16953.0,16952.0,0.08065774]
[1673129389192,3.92076712,16953.0,16952.0,0.66360433]
[1673129389460,3.92076712,16953.0,16952.0,1.14490733]
[1673129389968,3.92076712,16953.0,16952.0,0.66360433]
[1673129390456,3.478169,16953.0,16952.0,0.08065774]
[1673129392379,3.478169,16953.0,16952.0,0.56196074]
[1673129392632,3.478169,16953.0,16952.0,0.08065774]
[1673129394229,3.478169,16953.0,16952.0,0.56196074]
[1673129394677,3.92071876,16953.0,16952.0,0.56196074]
[1673129394848,3.92071876,16953.0,16952.0,0.08065774]
[1673129395070,4.36327182,16953.0,16952.0,0.08065774]
[1673129395515,4.36327182,16953.0,16952.0,0.08057479]
[1673129396261,3.92071876,16953.0,16952.0,0.08057479]
[1673129400712,4.36326632,16953.0,16952.0,0.08057479]
[1673129401462,4.36326632,16953.0,16952.0,0.07352379]
[1673129402963,4.36325672,16953.0,16952.0,0.07352379]
[1673129408168,4.36325672,16953.0,16952.0,0.55482679]
[1673129408381,4.36325672,16953.0,16952.0,0.07352379]
[1673129409387,4.36325672,16953.0,16952.0,0.55482679]
[1673129409609,4.36325672,16953.0,16952.0,0.07352379]
[1673129410568,4.36321083,16953.0,16952.0,0.07352379]
[1673129410817,3.92071876,16953.0,16952.0,0.07352379]
[1673129411061,3.92071876,16953.0,16952.0,0.55482679]
[1673129411557,3.92071876,16953.0,16952.0,0.07352379]
[1673129412080,3.92071876,16953.0,16952.0,0.55482679]
[1673129412568,3.92071876,16953.0,16952.0,0.07352379]
[1673129414381,5.058862,16953.0,16952.0,0.07352379]
[1673129414640,4.451219,16953.0,16952.0,0.07352379]
[1673129420081,3.92071876,16953.0,16952.0,0.07352379]
[1673129421497,3.92071876,16953.0,16952.0,0.07345002]
[1673129432585,3.92016516,16953.0,16952.0,0.07345002]
[1673129454712,4.36273235,16953.0,16952.0,0.55475302]
[1673129455228,4.71672993,16953.0,16952.0,0.55475302]
[1673129455482,4.71672993,16953.0,16952.0,0.07345002]
[1673129456453,4.71672993,16953.0,16952.0,0.55475302]
[1673129456704,4.71672993,16953.0,16952.0,0.55465743]
[1673129457684,4.71672993,16953.0,16952.0,0.07335443]
[1673129463531,3.92016516,16953.0,16952.0,0.07335443]
[1673129464542,4.36253772,16953.0,16952.0,0.07335443]
[1673129464803,3.92016516,16953.0,16952.0,0.07335443]
[1673129465812,4.36253955,16953.0,16952.0,0.07335443]
[1673129466111,4.36254008,16953.0,16952.0,0.07335443]
[1673129472529,4.36245637,16953.0,16952.0,0.07335443]
[1673129476847,3.73952178,16953.0,16952.0,0.07335443]
[1673129477099,4.0934853,16953.0,16952.0,0.07335443]
[1673129479837,3.91658168,16953.0,16952.0,0.07335443]
[1673129480097,4.3589566,16953.0,16952.0,0.07335443]
[1673129480343,3.91658168,16953.0,16952.0,0.07335443]
[1673129480815,4.3589566,16953.0,16952.0,0.07335443]
[1673129482035,4.0934853,16953.0,16952.0,0.07335443]
[1673129484830,4.35893197,16953.0,16952.0,0.07335443]
[1673129485562,4.0934853,16953.0,16952.0,0.07335443]
[1673129487125,4.35893181,16953.0,16952.0,0.07335443]
[1673129487630,4.0934853,16953.0,16952.0,0.07335443]
[1673129487847,4.3589335,16953.0,16952.0,0.07335443]
[1673129488106,3.91655858,16953.0,16952.0,0.07335443]
[1673129488606,4.3589335,16953.0,16952.0,0.07335443]
[1673129488869,3.91655858,16953.0,16952.0,0.07335443]
[1673129489373,4.75437542,16953.0,16952.0,0.07335443]
[1673129490893,3.95786214,16953.0,16952.0,0.07335443]
[1673129494047,4.31184004,16953.0,16952.0,0.07335443]
[1673129494338,3.95786214,16953.0,16952.0,0.07335443]
[1673129496221,4.56550514,16953.0,16952.0,0.07323801]
[1673129496486,3.95786214,16953.0,16952.0,0.07323801]
[1673129497530,4.56550514,16953.0,16952.0,0.07323801]
[1673129497786,3.95786214,16953.0,16952.0,0.07323801]
[1673129503231,4.31184515,16953.0,16952.0,0.07323801]
[1673129508244,4.13497046,16953.0,16952.0,0.07323801]
[1673129509005,4.57734538,16953.0,16952.0,0.07323801]
[1673129509537,4.31184515,16953.0,16952.0,0.07323801]
[1673129515626,4.13498357,16953.0,16952.0,0.07323801]
[1673129515873,4.57735849,16953.0,16952.0,0.07323801]
[1673129516120,4.54735849,16953.0,16952.0,0.07323801]
[1673129516836,4.32402927,16953.0,16952.0,0.07323801]
[1673129517085,4.58954992,16953.0,16952.0,0.07323801]
[1673129517338,4.32402927,16953.0,16952.0,0.07323801]
[1673129518348,4.14717539,16953.0,16952.0,0.07323801]
[1673129520464,3.30931583,16953.0,16952.0,0.07323801]
[1673129520716,3.3093108,16953.0,16952.0,0.7209626]
[1673129520965,3.3093108,16953.0,16952.0,1.2022656]
[1673129521474,3.3093108,16953.0,16952.0,0.7209626]
[1673129524358,3.3093108,16953.0,16952.0,1.2022656]
[1673129524578,3.2353837,16953.0,16952.0,1.2022656]
[1673129524784,3.2353837,16953.0,16952.0,0.7209626]
[1673129526726,3.2353837,16953.0,16952.0,1.2022656]
[1673129526945,3.2353837,16953.0,16952.0,0.7209626]
[1673129529047,3.2353837,16953.0,16952.0,1.2022656]
[1673129529809,3.2353837,16953.0,16952.0,0.7209626]
[1673129530311,3.2353837,16953.0,16952.0,1.2022656]
[1673129531921,3.2353837,16953.0,16952.0,0.7209626]
[1673129532408,3.2353837,16953.0,16952.0,1.2022656]
[1673129533338,2.79273456,16953.0,16952.0,1.2022656]
[1673129534098,2.79273456,16953.0,16952.0,0.7209626]
[1673129534351,2.79273456,16953.0,16952.0,1.2022656]
[1673129535082,2.79273456,16953.0,16952.0,0.7209626]
[1673129535584,2.79273456,16953.0,16952.0,1.2022656]
[1673129536346,2.79273456,16953.0,16952.0,0.7209626]
[1673129536606,2.79273456,16953.0,16952.0,1.2022656]
[1673129537547,2.79273456,16953.0,16952.0,0.7209626]
[1673129537796,2.79273456,16953.0,16952.0,1.2022656]
[1673129538750,2.79273456,16953.0,16952.0,0.7209626]
[1673129539000,2.79273456,16953.0,16952.0,1.2022656]
[1673129539740,2.79273456,16953.0,16952.0,0.7209626]
[1673129540007,2.79273456,16953.0,16952.0,1.2022656]
[1673129541449,2.79273456,16953.0,16952.0,0.55454101]
[1673129541709,2.79273456,16953.0,16952.0,0.07323801]
[1673129541954,2.9697431,16953.0,16952.0,0.55454101]
[1673129542215,2.79273456,16953.0,16952.0,0.55454101]
[1673129542436,2.9697431,16953.0,16952.0,0.55454101]
[1673129542679,2.9697431,16953.0,16952.0,0.07323801]
[1673129543432,2.9697431,16953.0,16952.0,0.55454101]
[1673129544109,2.9697431,16953.0,16952.0,0.07323801]
[1673129545132,3.23526414,16953.0,16952.0,0.07323801]
[1673129548393,2.9697431,16953.0,16952.0,0.07323801]
[1673129549781,2.9697431,16953.0,16952.0,0.55454101]
[1673129550565,2.9697431,16953.0,16952.0,0.07323801]
[1673129550820,3.23526414,16953.0,16952.0,0.07323801]
[1673129553976,2.9697431,16953.0,16952.0,0.73945296]
[1673129554495,2.9697431,16953.0,16952.0,1.22075596]
[1673129554997,2.9697431,16953.0,16952.0,0.73945296]
[1673129555545,3.23526414,16953.0,16952.0,0.73945296]
[1673129556055,3.23526414,16953.0,16952.0,1.22075596]
[1673129556526,3.23526414,16953.0,16952.0,0.73945296]
[1673129556760,3.23526414,16953.0,16952.0,0.73937967]
[1673129558508,3.23526414,16953.0,16952.0,0.07316472]
[1673129558756,3.3090552,16953.0,16952.0,0.07316472]
[1673129559373,3.3090552,16953.0,16952.0,0.55446772]
[1673129559628,3.3090552,16953.0,16952.0,0.07316472]
[1673129570012,3.3090552,16953.0,16952.0,0.55446772]
[1673129570257,3.3090552,16953.0,16952.0,0.07316472]
[1673129574663,3.3090552,16953.0,16952.0,0.55446772]
[1673129575358,3.3090552,16953.0,16952.0,0.07316472]
[1673129575863,3.3090552,16953.0,16952.0,0.55446772]
[1673129576588,3.3090552,16953.0,16952.0,0.07316472]
[1673129580577,3.66308131,16953.0,16952.0,0.07316472]
[1673129580834,3.48602967,16953.0,16952.0,0.07316472]
[1673129581078,3.30909806,16953.0,16952.0,0.07316472]
[1673129583595,3.30909806,16953.0,16952.0,0.55446772]
[1673129584300,3.30909806,16953.0,16952.0,0.07316472]
[1673129585291,3.66308107,16953.0,16952.0,0.07316472]
[1673129585800,3.48602967,16953.0,16952.0,0.07316472]
[1673129587611,3.66311362,16953.0,16952.0,0.07316472]
[1673129588112,3.48602967,16953.0,16952.0,0.07316472]
[1673129610034,3.93737918,16953.0,16952.0,0.07316472]
[1673129610287,5.04565787,16953.0,16952.0,0.07306291]
[1673129610549,4.59430836,16953.0,16952.0,0.07306291]
[1673129610874,4.15193344,16953.0,16952.0,0.07306291]
[1673129611333,3.98682695,16953.0,16952.0,0.07306291]
[1673129611581,3.54429044,16953.0,16952.0,0.07306291]
[1673129612372,3.98681989,16953.0,16952.0,0.07306291]
[1673129616702,4.34073419,16953.0,16952.0,0.07306291]
[1673129617691,3.98681989,16953.0,16952.0,0.07306291]
[1673129617936,4.3407077,16953.0,16952.0,0.07306291]
[1673129618430,3.98681989,16953.0,16952.0,0.07306291]
[1673129621318,4.34066391,16953.0,16952.0,0.07306291]
[1673129622646,4.34066407,16953.0,16952.0,0.07306291]
[1673129622846,3.98681989,16953.0,16952.0,0.07306291]
[1673129623372,4.34065661,16953.0,16952.0,0.07306291]
[1673129623909,3.98681989,16953.0,16952.0,0.07306291]
[1673129624134,4.34065679,16953.0,16952.0,0.07306291]
[1673129624378,3.98681989,16953.0,16952.0,0.07306291]
[1673129624622,4.34065573,16953.0,16952.0,0.07306291]
[1673129630711,4.94829873,16953.0,16952.0,0.07306291]
[1673129630957,4.59446289,16953.0,16952.0,0.07306291]
[1673129631727,4.59446289,16953.0,16952.0,0.07296757]
[1673129634603,4.94830477,16953.0,16952.0,0.07296757]
[1673129634845,4.34066177,16953.0,16952.0,0.07296757]
[1673129640317,2.25716695,16953.0,16952.0,7.57e-06]
[1673129640583,0.26515223,16949.0,16948.0,1.48476308]
[1673129640833,0.23767789,16949.0,16948.0,1.13703869]
[1673129641333,0.17695952,16950.0,16948.0,2.42618687]
[1673129641619,0.50409583,16949.0,16948.0,1.68405298]
[1673129641858,0.61280053,16949.0,16948.0,2.16548398]
[1673129642606,0.62780053,16949.0,16948.0,2.16548398]
[1673129643645,0.62780053,16949.0,16948.0,3.03735784]
[1673129643870,0.62780053,16949.0,16948.0,2.16548398]
[1673129645605,0.62780053,16949.0,16948.0,1.57546698]
[1673129647598,0.62780053,16949.0,16948.0,1.09403598]
[1673129648606,0.61280053,16949.0,16948.0,1.09403598]
[1673129649077,0.62680053,16949.0,16948.0,1.10103598]
[1673129649368,0.62680053,16949.0,16948.0,1.09403598]
[1673129649369,0.61280053,16949.0,16948.0,1.09403598]
[1673129649625,0.62680053,16949.0,16948.0,0.597009]
[1673129650647,0.62680053,16949.0,16948.0,0.77399392]
[1673129653000,0.62680053,16949.0,16948.0,0.007]
[1673129662642,0.62670651,16949.0,16948.0,0.007]
[1673129677197,0.80366603,16949.0,16948.0,0.007]
[1673129679838,1.06910531,16949.0,16948.0,0.007]
[1673129680596,1.75009181,16949.0,16948.0,0.007]
[1673129680852,1.24606483,16949.0,16948.0,0.007]
[1673129681961,1.42304458,16949.0,16948.0,0.007]
[1673129682247,1.06912554,16949.0,16948.0,0.007]
[1673129684434,1.06912554,16949.0,16948.0,0.00692146]
[1673129684737,1.06912554,16949.0,16948.0,0.48835446]
[1673129685002,1.06912554,16949.0,16948.0,0.00692146]
[1673129685938,1.06912554,16949.0,16948.0,0.48835446]
[1673129686189,1.06912554,16949.0,16948.0,0.00692146]
[1673129701349,1.06208554,16949.0,16948.0,0.00692146]
[1673129701610,0.79664626,16949.0,16948.0,0.00692146]
[1673129701828,0.79664626,16949.0,16948.0,0.48835446]
[1673129702118,1.06208554,16949.0,16948.0,0.00692146]
[1673129702881,0.79664626,16949.0,16948.0,0.00692146]
[1673129703875,1.06208554,16949.0,16948.0,0.00692146]
[1673129712148,1.41600458,16949.0,16948.0,0.00692146]
[1673129712650,1.23902483,16949.0,16948.0,0.00692146]
[1673129713185,1.41605103,16949.0,16948.0,0.00692146]
[1673129713394,1.41605705,16949.0,16948.0,0.00692146]
[1673129713637,1.06213801,16949.0,16948.0,0.00692146]
[1673129713886,1.41605705,16949.0,16948.0,0.00692146]
[1673129714141,1.23902483,16949.0,16948.0,0.00692146]
[1673129719402,1.74305181,16949.0,16948.0,0.00692146]
[1673129719661,1.23902483,16949.0,16948.0,0.00692146]
[1673129720145,1.68142363,16949.0,16948.0,0.00692146]
[1673129720613,1.41598435,16949.0,16948.0,0.00692146]
[1673129720888,1.68157617,16949.0,16948.0,0.00692146]
[1673129721130,2.28890742,16949.0,16948.0,0.00692146]
[1673129721382,2.0233156,16949.0,16948.0,0.00692146]
[1673129721637,1.4156726,16949.0,16948.0,0.00692146]
[1673129722922,1.91969958,16949.0,16948.0,0.00692146]
[1673129726553,1.4156726,16949.0,16948.0,0.00692146]
[1673129727345,1.68119657,16949.0,16948.0,0.00692146]
[1673129728546,1.68119539,16949.0,16948.0,0.00692146]
[1673129729699,1.23879659,16949.0,16948.0,0.00692146]
[1673129734403,1.4158125,16949.0,16948.0,0.00692146]
[1673129734652,1.06189346,16949.0,16948.0,0.00692146]
[1673129734951,1.4158125,16949.0,16948.0,0.00692146]
[1673129735372,1.23879659,16949.0,16948.0,0.00692146]
[1673129735844,1.41580223,16949.0,16948.0,0.00692146]
[1673129736546,1.41580388,16949.0,16948.0,0.00692146]
[1673129736779,1.23879659,16949.0,16948.0,0.00692146]
[1673129738348,1.06188467,16949.0,16948.0,0.00692146]
[1673129738853,1.06159617,16949.0,16948.0,0.00692146]
[1673129739086,1.23850809,16949.0,16948.0,0.00692146]
[1673129739317,1.41551566,16949.0,16948.0,0.00692146]
[1673129739550,1.41551591,16949.0,16948.0,0.00692146]
[1673129739789,1.06159687,16949.0,16948.0,0.00692146]
[1673129746680,0.29971252,16949.0,16948.0,0.98142962]
[1673129747661,0.29971252,16949.0,16948.0,0.49999662]
[1673129747901,0.29971252,16949.0,16948.0,0.98142962]
[1673129748406,0.29971252,16949.0,16948.0,0.49999662]
[1673129749192,0.29971252,16949.0,16948.0,0.98142962]
[1673129749426,0.29971252,16949.0,16948.0,0.49999662]
[1673129749690,0.29971252,16949.0,16948.0,0.98142962]
[1673129749942,0.29971252,16949.0,16948.0,0.49999662]
[1673129750253,0.29971252,16949.0,16948.0,0.98142962]
[1673129750696,0.29971252,16949.0,16948.0,0.49999662]
[1673129751990,0.29971252,16949.0,16948.0,0.98142962]
[1673129752234,0.29971252,16949.0,16948.0,0.49999662]
[1673129752513,0.29971252,16949.0,16948.0,0.98142962]
[1673129752789,0.29971252,16949.0,16948.0,0.49999662]
[1673129753324,0.29971252,16949.0,16948.0,0.98142962]
[1673129753579,0.29971252,16949.0,16948.0,0.49999662]
[1673129754636,0.1227047,16949.0,16948.0,0.98142962]
[1673129754888,0.1227047,16949.0,16948.0,0.49999662]
[1673129755156,0.1227047,16949.0,16948.0,1.15841454]
[1673129755435,0.1227047,16949.0,16948.0,0.98142962]
[1673129758538,0.1227047,16949.0,16948.0,0.49999662]
[1673129760770,0.1227047,16949.0,16948.0,0.98142962]
[1673129764251,0.1227047,16949.0,16948.0,0.49999662]
[1673129764520,0.1227047,16949.0,16948.0,0.98142962]
[1673129764786,0.1227047,16949.0,16948.0,0.49999662]
[1673129765046,0.1227047,16949.0,16948.0,0.98142962]
[1673129765301,0.1227047,16949.0,16948.0,0.49999662]
[1673129765554,0.1227047,16949.0,16948.0,0.98142962]
[1673129766311,0.1227047,16949.0,16948.0,0.49999662]
[1673129766588,0.1227047,16949.0,16948.0,0.98142962]
[1673129773032,0.1227047,16949.0,16948.0,1.15841454]
[1673129776506,0.29971252,16949.0,16948.0,1.15841454]
[1673129777050,0.1227047,16949.0,16948.0,1.15841454]
[1673129778889,0.29971252,16949.0,16948.0,1.15841454]
[1673129783675,0.29971252,16949.0,16948.0,0.67698154]
[1673129786705,0.29971252,16949.0,16948.0,1.42389199]
[1673129787205,0.29971252,16949.0,16948.0,1.15841454]
[1673129788029,0.29971252,16949.0,16948.0,1.42389199]
[1673129789086,0.29971252,16949.0,16948.0,1.15841454]
[1673129794212,0.29971252,16949.0,16948.0,1.42389199]
[1673129795245,0.29971252,16949.0,16948.0,1.15841454]
[1673129795502,0.29971252,16949.0,16948.0,1.42389199]
[1673129798157,0.29971252,16949.0,16948.0,2.29579624]
[1673129798896,0.29971252,16949.0,16948.0,1.42389199]
[1673129805191,0.29971252,16949.0,16948.0,1.15841454]
[1673129807902,0.29971252,16949.0,16948.0,1.42389199]
[1673129808393,0.29971252,16949.0,16948.0,2.29579492]
[1673129810695,0.1227047,16949.0,16948.0,2.29579492]
[1673129812003,0.12239599,16949.0,16948.0,2.29579492]
[1673129813663,0.29940381,16949.0,16948.0,2.29579492]
[1673129814180,0.79063132,16949.0,16948.0,0.66533938]
[1673129814430,0.79063132,16949.0,16948.0,0.18390638]
[1673129814676,1.05615411,16949.0,16948.0,0.66533938]
[1673129815459,1.05615411,16949.0,16948.0,0.48835446]
[1673129816249,1.05615411,16949.0,16948.0,0.00692146]
[1673129817245,1.05615411,16949.0,16948.0,0.48835446]
[1673129817961,0.79063132,16949.0,16948.0,0.66533938]
[1673129846155,1.05615411,16949.0,16948.0,0.48835446]
[1673129847180,1.05615411,16949.0,16948.0,0.00692146]
[1673129847436,1.05615411,16949.0,16948.0,0.48835446]
[1673129847689,1.05615411,16949.0,16948.0,0.00692146]
[1673129861508,1.05615411,16949.0,16948.0,0.18390638]
[1673129862513,1.05615411,16949.0,16948.0,0.00692146]
[1673129865014,1.05615411,16949.0,16948.0,0.48835446]
[1673129865261,1.05615411,16949.0,16948.0,0.00692146]
[1673129865753,1.05615411,16949.0,16948.0,0.18390638]
[1673129866269,1.05615411,16949.0,16948.0,0.66533938]
[1673129867824,0.79063132,16949.0,16948.0,0.66533938]
[1673129868263,1.05615411,16949.0,16948.0,0.00682516]
[1673129870291,1.05615411,16949.0,16948.0,0.48825816]
[1673129872892,1.054422,16949.0,16948.0,0.48825816]
[1673129885278,1.054422,16949.0,16948.0,0.66524308]
[1673129886788,1.054422,16949.0,16948.0,0.48825816]
[1673129887612,1.054422,16949.0,16948.0,0.00682516]
[1673129893254,0.56319449,16949.0,16948.0,0.18381008]
[1673129893499,0.56319449,16949.0,16948.0,0.66524308]
[1673129893739,0.2976717,16949.0,16948.0,0.66524308]
[1673129894267,0.55819449,16949.0,16948.0,0.66524308]
[1673129894515,0.2926717,16949.0,16948.0,0.66524308]
[1673129894841,0.55819449,16949.0,16948.0,0.66524308]
[1673129895090,1.19713633,16949.0,16948.0,0.48825816]
[1673129895334,1.19713633,16949.0,16948.0,0.00682516]
[1673129898609,1.19713633,16949.0,16948.0,0.48825816]
[1673129899601,1.19713633,16949.0,16948.0,0.00682516]
[1673129899850,1.19713633,16949.0,16948.0,0.66524308]
[1673129901082,1.19713633,16949.0,16948.0,0.48825816]
[1673129901325,1.19713633,16949.0,16948.0,0.00682516]
[1673129901565,1.19713633,16949.0,16948.0,0.66524308]
[1673129901796,1.19713633,16949.0,16948.0,0.48825816]
[1673129902830,1.19682731,16949.0,16948.0,0.48825816]
[1673129904861,1.19662089,16949.0,16948.0,0.48825816]
[1673129907386,1.19662089,16949.0,16948.0,0.66524308]
[1673129912271,1.19662089,16949.0,16948.0,0.48825816]
[1673129912787,1.19662089,16949.0,16948.0,0.66524308]
[1673129913041,1.19662089,16949.0,16948.0,0.48825816]
[1673129915067,1.19662089,16949.0,16948.0,0.00682516]
[1673129915301,1.19662089,16949.0,16948.0,0.48825816]
[1673129915523,1.19662089,16949.0,16948.0,0.00682516]
[1673129915781,1.19662089,16949.0,16948.0,0.18381008]
[1673129916026,1.19662089,16949.0,16948.0,0.66524308]
[1673129917575,0.11514844,16949.0,16948.0,1.80260382]
[1673129917834,0.29215626,16949.0,16948.0,0.93072053]
[1673129918081,0.29215626,16949.0,16948.0,0.66524308]
[1673129923095,0.11514844,16949.0,16948.0,1.78441863]
[1673129923335,0.11514844,16949.0,16948.0,2.92178162]
[1673129923871,0.11514844,16949.0,16948.0,1.78441863]
[1673129924928,0.11514844,16949.0,16948.0,1.19437863]